Workbook

Sheet Driver
A1: BOXPLAN-MLTL | B1: = | C1: 2.3 BETA
A7: Driver Information
A8: Name | B8: = | C8: Eminence NSW6021-6
A9: Database Location | B9: = | C9: I:\Users\Brian.Steele\OneDrive\Hornresp\Drivers\
A11: Size
A12: Est. Nominal Size | B12: = | C12: 21 | D12: in
A14: Driver Parameters
A15: Sd | B15: = | C15: 1642 | D15: cm^2
A16: Re | B16: = | C16: 3.8 | D16: Ohms
A17: Fs | B17: = | C17: 28.99978211 | D17: Hz
A18: Vas | B18: = | C18: 223.5874882 | D18: l
A19: Qes | B19: = | C19: 0.3100076924
A20: Qms | B20: = | C20: 15.35539977
A21: Qts | B21: = | C21: =(Driver_Qms*Driver_Qes)/(Driver_Qms+Driver_Qes) -> 0.3038728523
A22: Le | B22: = | C22: 1.38 | D22: mH
A23: Pmax | B23: = | C23: 1200 | D23: W
A24: Xmax | B24: = | C24: 38 | D24: mm
A26: Semi-Inductance
A27: Re' | B27: = | C27: 4.12 | D27: Ohms
A28: Leb | B28: = | C28: 1.55 | D28: mH
A29: Le | B29: = | C29: 19.17 | D29: mH
A30: Ke | B30: = | C30: 0.08 | D30: sH
A31: Rss | B31: = | C31: 24.31 | D31: Ohms
A33: Driver Dimensions
A34: Frame Width | B34: = | C34: =21.65*2.54 -> 54.991 | D34: cm | E34: =C34/2.54 -> 21.65 | F34: in.
A35: Mounting Width | B35: = | C35: =19.83*2.54 -> 50.3682 | D35: cm | E35: =C35/2.54 -> 19.83 | F35: in.
A36: Mounting Depth | B36: = | C36: =10.39*2.54 -> 26.3906 | D36: cm | E36: =C36/2.54 -> 10.39 | F36: in.
A37: Magnet Width | B37: = | C37: 15 | D37: cm | E37: =C37/2.54 -> 5.905511811 | F37: in.
A38: Magnet Height | B38: = | C38: 12 | D38: cm | E38: =C38/2.54 -> 4.724409449 | F38: in.
A39: Cone Volume | B39: = | C39: 5 | D39: l
A42: Merit Calculations
A43: BL^2/Re | B43: = | C43: 54.57195373
A44: FOM1 | B44: = | C44: =ROUND(Driver_Fs / Driver_Qts, 1) -> 95.4
A45: FOM2 | B45: = | C45: =ROUND(Driver_Vas * Driver_Fs ^ 2 / 1000, 1) -> 188
A48: HornResp
A49: =Driver_Name -> Eminence NSW6021-6
A51: =CONCATENATE("Sd=",numSD) -> Sd=1642
A52: =CONCATENATE("Bl=",numBL) -> Bl=34.06
A53: =CONCATENATE("Cms=",ROUND(numCms,6)) -> Cms=0.000058
A54: =CONCATENATE("Rms=",numRms) -> Rms=6.16
A55: =CONCATENATE("Mmd=",numMmd) -> Mmd=481.05
A56: =CONCATENATE("Le=",numLe) -> Le=1.38
A57: =CONCATENATE("Re=",numRe) -> Re=3.8
A58: =CONCATENATE("Pmax=",numPmax) -> Pmax=1200
A59: =CONCATENATE("Xmax=",numXmax) -> Xmax=38
A60: =CONCATENATE("Re'=",numRe1) -> Re'=4.12
A61: =CONCATENATE("Leb=",numLeb) -> Leb=1.55
A62: =CONCATENATE("Le=",numLe1) -> Le=19.17
A63: =CONCATENATE("Ke=",numKe) -> Ke=0.08
A64: =CONCATENATE("Rss=",numRss) -> Rss=24.31
A65: =CONCATENATE("Rms=",numRms1) -> Rms=0
A66: =CONCATENATE("Ams=",numAms) -> Ams=0
A67: LossyLe=0
A68: =IF(numRe1>0,"SemiInductance=1","SemiInductance=1") -> SemiInductance=1
A69: =IF(numAms>0,"Damping=1","Damping=0") -> Damping=0
A71: Additional Data
A72: =CONCATENATE("Driver=",Driver_Name) -> Driver=Eminence NSW6021-6
A73: =CONCATENATE("FrameW=",Driver_FrameW) -> FrameW=54.991
A74: =CONCATENATE("MountingW=",Driver_MountingW) -> MountingW=50.3682
A75: =CONCATENATE("MountingD=",Driver_RearMountingD) -> MountingD=26.3906
A76: =CONCATENATE("MagnetW=",Driver_MagnetW) -> MagnetW=15
A77: =CONCATENATE("MagnetH=",Driver_MagnetH) -> MagnetH=12
A78: =CONCATENATE("ConeVol=",Driver_Conevol) -> ConeVol=5
A79: =CONCATENATE("FrontMountVol=",Driver_FrontMountVol) -> FrontMountVol=

Sheet Design
B1: =Driver!A1 -> BOXPLAN-MLTL | C1: = | D1: =Driver!C1 -> 2.3 BETA
B3: Box Dimensions
B4: Driver Frame | C4: = | D4: =Driver_FrameW -> 54.991 | E4: cm | F4: =D4/2.54 -> 21.65 | G4: in | I4: - | K4: Plot | N4: -
B5: Depth (external) | C5: = | D5: =28*2.54 -> 71.12 | E5: cm | F5: 28 | G5: in | J5: x | K5: =CONCATENATE(Panels!B38," ",Panels!C38) -> Panel A (baffle)
B6: Height (external) | C6: = | D6: =32*2.54 -> 81.28 | E6: cm | F6: 32 | G6: in | J6: x | K6: =CONCATENATE(Panels!B44," ",Panels!C44) -> Panel B (top)
B7: Width (external) | C7: = | D7: 60 | E7: cm | F7: 23.62204724 | G7: in | J7: x | K7: =CONCATENATE(Panels!B50," ",Panels!C50) -> Panel C (bottom)
B8: Panel Thickness | C8: = | D8: 1.9 | E8: cm | F8: 0.7480314961 | G8: in | J8: x | K8: =CONCATENATE(Panels!B56," ",Panels!C56) -> Panel D (back)
B9: Panel E (1st Inside) | C9: = | D9: 37.48779776 | E9: cm | F9: 14.75897549 | G9: in | H9: =Path!S25 -> 0.001098510291 | J9: x | K9: =CONCATENATE(Panels!B62," ",Panels!C62) -> Panel E (1st inside)
B10: Panel E (offset) | C10: = | D10: -0.6294748277 | E10: cm | F10: -0.2478247353 | G10: in | H10: =Path!S37 -> -5.635308753e-08 | J10: x | K10: =CONCATENATE(Panels!B68," ",Panels!C68) -> Panel F (2nd inside)
J11: x | K11: =CONCATENATE(Panels!B74," ",Panels!C74) -> Panel G (sides)
B12: Baffle Offset | C12: = | D12: 1.9 | E12: cm | F12: =D12/2.54 -> 0.7480314961 | G12: in | J12: x | K12: =CONCATENATE(Panels!B80," ",Panels!C80) -> Panel H (port separator)
B13: Driver Offset | C13: = | D13: 6 | E13: cm | F13: =D13/2.54 -> 2.362204724 | G13: in
J14: x | K14: Profile View
B15: Source Voltage | C15: = | D15: 160 | E15: V
B16: Series Impedance | C16: = | D16: 0.1 | E16: Ohms | K16: Plot
B17: Power Level | C17: = | D17: =sim_Eg^2/Driver_Re -> 6736.842105 | E17: Watts | J17: x | K17: Advanced Centerline
J18: x | K18: Sample points
J19: x | K19: Guide lines
B20: Baffle Width | C20: = | D20: =Box_Width-2*p -> 56.2 | E20: cm | F20: =D20/2.54 -> 22.12598425 | G20: in | J20: x | K20: Driver
B22: HornResp Params
B23: S1 | C23: = | D23: =ROUND(Path!P7,0) -> 2505 | E23: cm^2 | F23: 1179
B24: S2 | C24: = | D24: =ROUND(Path!P65,0) -> 1701 | E24: cm^2 | F24: 814
B25: S3 | C25: = | D25: =ROUND(Path!P46,0) -> 800 | E25: cm^2 | F25: 450
B26: S4 | C26: = | D26: 800 | E26: cm^2 | F26: 450
B27: L12 | C27: = | D27: =ROUND(Path!O65,1) -> 58.4 | E27: cm | F27: 52.7
B28: L23 | C28: = | D28: =ROUND(Path!O46-Design!D27,1) -> 65.5 | E28: cm | F28: 52.7
B29: L34 | C29: = | D29: =ROUND(Path!O61-Design!D28-Design!D27,1) -> 69.2 | E29: cm | F29: 59.5
B30: L (actual) | C30: = | D30: =SUM(D27:D29) -> 193.1 | E30: cm | F30: =SUM(F27:F29) -> 164.9
B32: Expansion | C32: = | D32: 13.95861083 | H32: =Path!S34 -> 0.004231987533
B33: Path | C33: = | D33: =ROUND(Driver_Center_Y-Vent_Center_Y,1) -> 40.1 | E33: cm
B43: Export Filename | C43: = | D43: I:\Users\Brian.Steele\OneDrive\Hornresp\Import\BOXPLAN.TXT
B44: Comment | C44: = | D44: =CONCATENATE(Driver!A1," ",Driver!C1," - ",TEXT(NOW(),"yyyy-mm-dd hh:mm:ss")) -> BOXPLAN-MLTL 2.3 BETA - 2020-04-19 13:04:28
B45: Export Format | C45: =

Sheet Build
A1: Panel Dimensions
A2: Vol. (net) | B2: = | C2: =C3-H19 -> 273.5689079 | D2: l. | E2: =(C2*1000/2.54^3)/1728 -> 9.660994808 | F2: cu.ft.
A3: Vol. (gross) | B3: = | C3: =Box_Height*Box_Width*Box_Depth/1000 -> 346.838016 | D3: l. | E3: =C3*0.0353 -> 12.24338196 | F3: cu.ft.
A5: Expansion | B5: = | C5: =Expansion -> 13.95861083
A7: Panels | C7: p | D7: x | E7: y | F7: Goals | G7: # | H7: v
A8: =Design!K5 -> Panel A (baffle) | C8: =p -> 1.9 | D8: =Design!D20 -> 56.2 | E8: =Panels!L39 -> 60.84703499 | G8: 1 | H8: =E8*D8*C8*G8/10^3 -> 6.497246396
A9: =Design!K6 -> Panel B (top) | C9: =p -> 1.9 | D9: =Design!D20 -> 56.2 | E9: =Panels!L45 -> 71.12 | G9: 1 | H9: =E9*D9*C9*G9/10^3 -> 7.5941936
A10: =Design!K7 -> Panel C (bottom) | C10: =p -> 1.9 | D10: =Design!D20 -> 56.2 | E10: =Panels!L51 -> 71.12 | G10: 1 | H10: =E10*D10*C10*G10/10^3 -> 7.5941936
A11: =Design!K8 -> Panel D (back) | C11: =p -> 1.9 | D11: =Design!D20 -> 56.2 | E11: =Panels!L58 -> 77.48 | G11: 1 | H11: =E11*D11*C11*G11/10^3 -> 8.2733144
A12: =Design!K9 -> Panel E (1st inside) | C12: =p -> 1.9 | D12: =Design!D20 -> 56.2 | E12: =Panel_E -> 37.48779776 | G12: 1 | H12: =E12*D12*C12*G12/10^3 -> 4.002947044
A14: =Design!K10 -> Panel F (2nd inside) | C14: =p -> 1.9 | D14: =Design!D20 -> 56.2 | E14: =Panels!L69 -> 54.98512456 | G14: 1 | H14: =E14*D14*C14*G14/10^3 -> 5.8713116
A15: =Design!K11 -> Panel G (sides) | C15: =p -> 1.9 | D15: =Panels!L75 -> 71.12 | E15: =Panels!L78 -> 81.28 | G15: 2 | H15: =E15*D15*C15*G15/10^3 -> 21.96640768
A16: =Design!K12 -> Panel H (port separator) | C16: =p -> 1.9 | D16: =Panels!L81 -> 69.22 | E16: =Panels!L82 -> 14.73296501 | G16: 2 | H16: =E16*D16*C16*G16/10^3 -> 3.875300184
A17: Baffle Offset | C17: =p -> 1.9 | D17: =Design!D20 -> 56.2 | E17: =E9 -> 71.12 | G17: 1 | H17: =E17*D17*C17*G17/10^3 -> 7.5941936
G19: Pnl Vol | H19: =SUM(H8:H18) -> 73.2691081 | I19: l

Sheet Hornresp (hidden)
A1: 48.20 | C1: 2
A2: BOXPLAN
A5: ID | B5: = | C5: =INDEX(A1:A2,C1) -> BOXPLAN | E5: =IF(D5="x","",CONCATENATE(A5,B5,C5)) -> ID=BOXPLAN
A6: Ang | B6: = | C6: 2.0 x Pi | E6: Ang=2.0 x Pi
A7: Eg | B7: = | C7: =sim_Eg -> 160 | E7: Eg=160
A8: Rg | B8: = | C8: =sim_Rg -> 0.1 | E8: Rg=0.1
A9: Fta | B9: = | C9: 0 | E9: Fta=0
A10: S1 | B10: = | C10: =ROUND(sim_S1,1) -> 2505 | E10: S1=2505
A11: S2 | B11: = | C11: =ROUND(sim_S2,1) -> 1701 | E11: S2=1701
A12: Par | B12: = | C12: =ROUND(sim_L12,1) -> 58.4 | E12: Par=58.4
A13: F12 | B13: = | C13: 0 | E13: F12=0
A14: S2 | B14: = | C14: =C11 -> 1701 | E14: S2=1701
A15: S3 | B15: = | C15: =ROUND(sim_S3,1) -> 800 | E15: S3=800
A16: Par | B16: = | C16: =ROUND(sim_L23,1) -> 65.5 | E16: Par=65.5
A17: F23 | B17: = | C17: 0 | E17: F23=0
A18: S3 | B18: = | C18: =C15 -> 800 | E18: S3=800
A19: S4 | B19: = | C19: =ROUND(sim_S4,1) -> 800 | E19: S4=800
A20: Par | B20: = | C20: =ROUND(sim_L34,1) -> 69.2 | E20: Par=69.2
A21: F34 | B21: = | C21: 0 | E21: F34=0
A22: S4 | B22: = | C22: 0 | E22: S4=0
A23: S5 | B23: = | C23: 0 | E23: S5=0
A24: L45 | B24: = | C24: 0 | E24: L45=0
A25: F45 | B25: = | C25: 0 | E25: F45=0
A26: Sd | B26: = | C26: =Driver_Sd -> 1642 | E26: Sd=1642
A27: Bl | B27: = | C27: =ROUND((Driver_Re/(Driver_Qes*numCms*2*PI()*Driver_Fs))^0.5,2) -> 34.06 | E27: Bl=34.06
A28: Cms | B28: = | C28: =ROUND(Driver_Vas/(1.42*Driver_Sd^2),6) -> 5.8e-05 | E28: Cms=0.000058
A29: Rms | B29: = | C29: =ROUND(1/(2*PI()*Driver_Fs*numCms*Driver_Qms),2) -> 6.16 | E29: Rms=6.16
A30: Mmd | B30: = | C30: =ROUND(1000/((2*PI()*Driver_Fs)^2*numCms)-(0.575*Driver_Sd^1.5/1000),2) -> 481.05 | E30: Mmd=481.05
A31: Le | B31: = | C31: =Driver_Le -> 1.38 | E31: Le=1.38
A32: Re | B32: = | C32: =Driver_Re -> 3.8 | E32: Re=3.8
A33: OD | B33: = | C33: 1 | E33: OD=1
A34: Vrc | B34: = | C34: 0 | E34: Vrc=0
A35: Lrc | B35: = | C35: 0 | E35: Lrc=0
A36: Ap1 | B36: = | C36: 0 | E36: Ap1=0
A37: Lp | B37: = | C37: 0 | E37: Lp=0
A38: Vtc | B38: = | C38: 0 | E38: Vtc=0
A39: Atc | B39: = | C39: 0 | E39: Atc=0
A40: Pmax | B40: = | C40: =Driver_Pmax -> 1200 | E40: Pmax=1200
A41: Xmax | B41: = | C41: =Driver_Xmax -> 38 | E41: Xmax=38
A42: Path | B42: = | C42: =Path -> 40.1 | E42: Path=40.1
A43: Mass | B43: = | C43: 0 | E43: Mass=0
A44: Re' | B44: = | C44: =Driver_Re1 -> 4.12 | E44: Re'=4.12
A45: Leb | B45: = | C45: =Driver_Leb -> 1.55 | E45: Leb=1.55
A46: Le | B46: = | C46: =Driver_Le1 -> 19.17 | E46: Le=19.17
A47: Ke | B47: = | C47: =Driver_Ke -> 0.08 | E47: Ke=0.08
A48: Rss | B48: = | C48: =Driver_Rss -> 24.31 | E48: Rss=24.31
A49: Rms | B49: = | C49: 0 | E49: Rms=0
A50: Ams | B50: = | C50: 0 | E50: Ams=0
C51: Fr1=0.00 | D51: =IF($C$5="BOXPLAN","x","") -> x
C52: Fr2=0.00 | D52: x
C53: Fr3=0.00 | D53: x
C54: Fr4=0.00 | D54: x
C55: Tal1=100 | D55: x
C56: Tal2=100 | D56: x
C57: Tal3=100 | D57: x
C58: Tal4=100 | D58: x
A59: Comment | B59: = | C59: =sim_Comment -> BOXPLAN-MLTL 2.3 BETA - 2020-04-19 13:04:28 | E59: Comment=BOXPLAN-MLTL 2.3 BETA - 2020-04-19 13:04:28
C60: ~~~~~~~~~~~~~~~~~~~~~~~~~~~~~~~~~~~~~~~~~~~~~~~~~~~~~~~~~~~~~~~~~~~~~~~~~~~~~~~~~~~~ | D60: =IF($C$5="BOXPLAN","x","") -> x
C61: FILTER | D61: x
C62: 0 0.01 0.0 -1 0 0.01 0.0 -1 0 0.01 0.0 -1 | D62: x
C63: 0 0.01 0.0 -1 0 0.01 0.0 -1 0 0.01 0.0 -1 | D63: x
C64: 0 0 0 0 | D64: x
C65: 1 30.50.5 | D65: x
C66: 0.50.50.50.5 | D66: x
C67: SSSS | D67: x
C68: 0111 | D68: x
C69: 1111 | D69: x | E69: =IF(D69="x","",CONCATENATE(A69,B69,C69)) -> 
C70: 0022 | D70: =IF($C$5="BOXPLAN","x","") -> x
C71: 1111 | D71: =IF($C$5="BOXPLAN","x","") -> x
C72: 111 | D72: =IF($C$5="BOXPLAN","x","") -> x
C73: 000 | D73: =IF($C$5="BOXPLAN","x","") -> x
C74: ~~~~~~~~~~~~~~~~~~~~~~~~~~~~~~~~~~~~~~~~~~~~~~~~~~~~~~~~~~~~~~~~~~~~~~~~~~~~~~~~~~~~ | D74: =IF($C$5="BOXPLAN","x","") -> x

Sheet Panels (hidden)
B2: Offset | D2: x | E2: y
D3: 0 | E3: 0
B5: Driver | D5: x | E5: y
D6: =D38 -> 1.9 | E6: =Path!J23-Driver_FrameW/2+Driver_Offset -> 21.92023986 | G6: =IF(Design!$J$20="x",Panels!D6,"") -> 1.9 | H6: =IF(Design!$J$20="x",Panels!E6,"") -> 21.92023986
D7: =D6 -> 1.9 | E7: =E6+Driver_FrameW -> 76.91123986 | G7: =IF(Design!$J$20="x",Panels!D7,"") -> 1.9 | H7: =IF(Design!$J$20="x",Panels!E7,"") -> 76.91123986
D8: =D7 -> 1.9 | E8: =E7-(Driver_FrameW-Driver_MountingW)/2 -> 74.59983986 | G8: =IF(Design!$J$20="x",Panels!D8,"") -> 1.9 | H8: =IF(Design!$J$20="x",Panels!E8,"") -> 74.59983986
D9: =D8+Driver_RearMountingD-Driver_MagnetH -> 16.2906 | E9: =E8-(Driver_MountingW-Driver_MagnetW)/2 -> 56.91573986 | G9: =IF(Design!$J$20="x",Panels!D9,"") -> 16.2906 | H9: =IF(Design!$J$20="x",Panels!E9,"") -> 56.91573986
D10: =D9+Driver_MagnetH -> 28.2906 | E10: =E9 -> 56.91573986 | G10: =IF(Design!$J$20="x",Panels!D10,"") -> 28.2906 | H10: =IF(Design!$J$20="x",Panels!E10,"") -> 56.91573986
D11: =D10 -> 28.2906 | E11: =E10-Driver_MagnetW -> 41.91573986 | G11: =IF(Design!$J$20="x",Panels!D11,"") -> 28.2906 | H11: =IF(Design!$J$20="x",Panels!E11,"") -> 41.91573986
D12: =D9 -> 16.2906 | E12: =E11 -> 41.91573986 | G12: =IF(Design!$J$20="x",Panels!D12,"") -> 16.2906 | H12: =IF(Design!$J$20="x",Panels!E12,"") -> 41.91573986
D13: =D8 -> 1.9 | E13: =E6+(Driver_FrameW-Driver_MountingW)/2 -> 24.23163986 | G13: =IF(Design!$J$20="x",Panels!D13,"") -> 1.9 | H13: =IF(Design!$J$20="x",Panels!E13,"") -> 24.23163986
D14: =D13 -> 1.9 | E14: =E6+Driver_FrameW/2 -> 49.41573986 | G14: =IF(Design!$J$20="x",Panels!D14,"") -> 1.9 | H14: =IF(Design!$J$20="x",Panels!E14,"") -> 49.41573986
D15: =D12 -> 16.2906 | E15: =E14 -> 49.41573986 | G15: =IF(Design!$J$20="x",Panels!D15,"") -> 16.2906 | H15: =IF(Design!$J$20="x",Panels!E15,"") -> 49.41573986
D16: =D15 -> 16.2906 | E16: =E12 -> 41.91573986 | G16: =IF(Design!$J$20="x",Panels!D16,"") -> 16.2906 | H16: =IF(Design!$J$20="x",Panels!E16,"") -> 41.91573986
D17: =D16 -> 16.2906 | E17: =E10 -> 56.91573986 | G17: =IF(Design!$J$20="x",Panels!D17,"") -> 16.2906 | H17: =IF(Design!$J$20="x",Panels!E17,"") -> 56.91573986
B19: Driver Axes | D19: 0 | E19: 0
D20: 0 | E20: =MAX(E6:E17) -> 76.91123986
D22: 0 | E22: 0
D23: =E20 -> 76.91123986 | E23: 0
B26: Axes | D26: 0 | E26: 0
D27: 0 | E27: =MAX(D32:E131) -> 141.12
O28: Expansion | P28: Cos | Q28: Sin | R28: Tan
D29: =D26 -> 0 | E29: =E26 -> 0 | O29: =Design!D32 -> 13.95861083 | P29: =COS(Design!D32*PI()/180) -> 0.970470232 | Q29: =SIN(Design!D32*PI()/180) -> 0.2412209129 | R29: =TAN(Design!D32*PI()/180) -> 0.2485608573
D30: =E27 -> 141.12 | E30: =E26 -> 0 | O30: =O29/2 -> 6.979305413 | P30: =COS(Design!D32*PI()/(180*2)) -> 0.9925901047 | Q30: =SIN(Design!D32*PI()/(180*2)) -> 0.121510839 | R30: =TAN(Design!D32*PI()/(180*2)) -> 0.1224179432
J31: dx | K31: dy
B38: Panel A | C38: (baffle) | D38: =D71+Baffle_Offset -> 1.9 | E38: =E70 -> 18.53296501 | G38: =IF(Design!$J$5="x",Panels!D38,0) -> 1.9 | H38: =IF(Design!$J$5="x",Panels!E38,0) -> 18.53296501
D39: =D38 -> 1.9 | E39: =E44 -> 79.38 | G39: =IF(Design!$J$5="x",Panels!D39,0) -> 1.9 | H39: =IF(Design!$J$5="x",Panels!E39,0) -> 79.38 | J39: =D38-D39 -> 0 | K39: =E38-E39 -> -60.84703499 | L39: =(J39^2+K39^2)^0.5 -> 60.84703499
D40: =D39+p -> 3.8 | E40: =E39 -> 79.38 | G40: =IF(Design!$J$5="x",Panels!D40,0) -> 3.8 | H40: =IF(Design!$J$5="x",Panels!E40,0) -> 79.38 | J40: -1.9 | K40: 0 | L40: =(J40^2+K40^2)^0.5 -> 1.9
D41: =D40 -> 3.8 | E41: =E38 -> 18.53296501 | G41: =IF(Design!$J$5="x",Panels!D41,0) -> 3.8 | H41: =IF(Design!$J$5="x",Panels!E41,0) -> 18.53296501 | J41: 0 | K41: 60.84703499 | L41: =(J41^2+K41^2)^0.5 -> 60.84703499
D42: =D38 -> 1.9 | E42: =E38 -> 18.53296501 | G42: =IF(Design!$J$5="x",Panels!D42,0) -> 1.9 | H42: =IF(Design!$J$5="x",Panels!E42,0) -> 18.53296501 | J42: 1.9 | K42: 0 | L42: =(J42^2+K42^2)^0.5 -> 1.9
B44: Panel B | C44: (top) | D44: =D77 -> 0 | E44: =E76-p -> 79.38 | G44: =IF(Design!$J$6="x",Panels!D44,0) -> 0 | H44: =IF(Design!$J$6="x",Panels!E44,0) -> 79.38
D45: =D44+Box_Depth -> 71.12 | E45: =E44 -> 79.38 | G45: =IF(Design!$J$6="x",Panels!D45,0) -> 71.12 | H45: =IF(Design!$J$6="x",Panels!E45,0) -> 79.38 | J45: =D44-D45 -> -71.12 | K45: 0 | L45: =(J45^2+K45^2)^0.5 -> 71.12
D46: =D45 -> 71.12 | E46: =E45+p -> 81.28 | G46: =IF(Design!$J$6="x",Panels!D46,0) -> 71.12 | H46: =IF(Design!$J$6="x",Panels!E46,0) -> 81.28 | J46: 0 | K46: -1.9 | L46: =(J46^2+K46^2)^0.5 -> 1.9
D47: =D44 -> 0 | E47: =E46 -> 81.28 | G47: =IF(Design!$J$6="x",Panels!D47,0) -> 0 | H47: =IF(Design!$J$6="x",Panels!E47,0) -> 81.28 | J47: 71.12 | K47: 0 | L47: =(J47^2+K47^2)^0.5 -> 71.12
D48: =D44 -> 0 | E48: =E44 -> 79.38 | G48: =IF(Design!$J$6="x",Panels!D48,0) -> 0 | H48: =IF(Design!$J$6="x",Panels!E48,0) -> 79.38 | J48: 0 | K48: 1.9 | L48: =(J48^2+K48^2)^0.5 -> 1.9
B50: Panel C | C50: (bottom) | D50: =D74 -> 0 | E50: =E74+p -> 1.9 | G50: =IF(Design!$J$7="x",Panels!D50,0) -> 0 | H50: =IF(Design!$J$7="x",Panels!E50,0) -> 1.9
D51: =D75 -> 71.12 | E51: =E50 -> 1.9 | G51: =IF(Design!$J$7="x",Panels!D51,0) -> 71.12 | H51: =IF(Design!$J$7="x",Panels!E51,0) -> 1.9 | J51: =D50-D51 -> -71.12 | K51: 0 | L51: =(J51^2+K51^2)^0.5 -> 71.12
D52: =D51 -> 71.12 | E52: =E51-p -> 0 | G52: =IF(Design!$J$7="x",Panels!D52,0) -> 71.12 | H52: =IF(Design!$J$7="x",Panels!E52,0) -> 0 | J52: 0 | K52: 1.9 | L52: =(J52^2+K52^2)^0.5 -> 1.9
D53: =D50 -> 0 | E53: =E52 -> 0 | G53: =IF(Design!$J$7="x",Panels!D53,0) -> 0 | H53: =IF(Design!$J$7="x",Panels!E53,0) -> 0 | J53: 71.12 | K53: 0 | L53: =(J53^2+K53^2)^0.5 -> 71.12
D54: =D50 -> 0 | E54: =E50 -> 1.9 | G54: =IF(Design!$J$7="x",Panels!D54,0) -> 0 | H54: =IF(Design!$J$7="x",Panels!E54,0) -> 1.9 | J54: 0 | K54: -1.9 | L54: =(J54^2+K54^2)^0.5 -> 1.9
B56: Panel D | C56: (back) | D56: =D75 -> 71.12 | E56: =E74+p -> 1.9 | G56: =IF(Design!$J$8="x",Panels!D56,0) -> 71.12 | H56: =IF(Design!$J$8="x",Panels!E56,0) -> 1.9
D57: =D56-p -> 69.22 | E57: =E56 -> 1.9 | G57: =IF(Design!$J$8="x",Panels!D57,0) -> 69.22 | H57: =IF(Design!$J$8="x",Panels!E57,0) -> 1.9 | J57: =D56-D57 -> 1.9 | K57: 0 | L57: =(J57^2+K57^2)^0.5 -> 1.9
D58: =D57 -> 69.22 | E58: =E45 -> 79.38 | G58: =IF(Design!$J$8="x",Panels!D58,0) -> 69.22 | H58: =IF(Design!$J$8="x",Panels!E58,0) -> 79.38 | J58: 0 | K58: -77.48 | L58: =(J58^2+K58^2)^0.5 -> 77.48
D59: =D58+p -> 71.12 | E59: =E58 -> 79.38 | G59: =IF(Design!$J$8="x",Panels!D59,0) -> 71.12 | H59: =IF(Design!$J$8="x",Panels!E59,0) -> 79.38 | J59: -1.9 | K59: 0 | L59: =(J59^2+K59^2)^0.5 -> 1.9
D60: =D56 -> 71.12 | E60: =E56 -> 1.9 | G60: =IF(Design!$J$8="x",Panels!D60,0) -> 71.12 | H60: =IF(Design!$J$8="x",Panels!E60,0) -> 1.9 | J60: 0 | K60: 77.48 | L60: =(J60^2+K60^2)^0.5 -> 77.48
B62: Panel E | C62: (1st inside) | D62: =D57 -> 69.22 | E62: =E70+Panel_E_Offset+p*P29+(E68-E50) -> 34.48034863 | G62: =IF(Design!$J$9="x",Panels!D62,0) -> 69.22 | H62: =IF(Design!$J$9="x",Panels!E62,0) -> 34.48034863
D63: =D62-Panel_E*P29 -> 32.83920821 | E63: =E62+Panel_E*Q29 -> 43.52318943 | G63: =IF(Design!$J$9="x",Panels!D63,0) -> 32.83920821 | H63: =IF(Design!$J$9="x",Panels!E63,0) -> 43.52318943 | J63: =D62-D63 -> 36.38079179 | K63: -9.042840796 | L63: =(J63^2+K63^2)^0.5 -> 37.48779776
D64: =D63-p*Q29 -> 32.38088848 | E64: =E63-p*P29 -> 41.67929599 | G64: =IF(Design!$J$9="x",Panels!D64,0) -> 32.38088848 | H64: =IF(Design!$J$9="x",Panels!E64,0) -> 41.67929599 | J64: 0.4583197345 | K64: 1.843893441 | L64: =(J64^2+K64^2)^0.5 -> 1.9
D65: =D62-p*Q29 -> 68.76168027 | E65: =E62-p*P29 -> 32.63645519 | G65: =IF(Design!$J$9="x",Panels!D65,0) -> 68.76168027 | H65: =IF(Design!$J$9="x",Panels!E65,0) -> 32.63645519 | J65: -36.38079179 | K65: 9.042840796 | L65: =(J65^2+K65^2)^0.5 -> 37.48779776
D66: =D62 -> 69.22 | E66: =E62 -> 34.48034863 | G66: =IF(Design!$J$9="x",Panels!D66,0) -> 69.22 | H66: =IF(Design!$J$9="x",Panels!E66,0) -> 34.48034863 | J66: -0.4583197345 | K66: -1.843893441 | L66: =(J66^2+K66^2)^0.5 -> 1.9
B68: Panel F | C68: (2nd inside) | D68: =D47 -> 0 | E68: =E50+sim_S4/(Baffle_Width-p) -> 16.63296501 | G68: =IF(Design!$J$10="x",Panels!D68,0) -> 0 | H68: =IF(Design!$J$10="x",Panels!E68,0) -> 16.63296501
D69: =D62-(sim_S4/Baffle_Width) -> 54.98512456 | E69: =E68 -> 16.63296501 | G69: =IF(Design!$J$10="x",Panels!D69,0) -> 54.98512456 | H69: =IF(Design!$J$10="x",Panels!E69,0) -> 16.63296501 | J69: =D68-D69 -> -54.98512456 | K69: 0 | L69: =(J69^2+K69^2)^0.5 -> 54.98512456
D70: =D69 -> 54.98512456 | E70: =E69+p -> 18.53296501 | G70: =IF(Design!$J$10="x",Panels!D70,0) -> 54.98512456 | H70: =IF(Design!$J$10="x",Panels!E70,0) -> 18.53296501 | J70: 0 | K70: -1.9 | L70: =(J70^2+K70^2)^0.5 -> 1.9
D71: =D68 -> 0 | E71: =E70 -> 18.53296501 | G71: =IF(Design!$J$10="x",Panels!D71,0) -> 0 | H71: =IF(Design!$J$10="x",Panels!E71,0) -> 18.53296501 | J71: 54.98512456 | K71: 0 | L71: =(J71^2+K71^2)^0.5 -> 54.98512456
D72: =D68 -> 0 | E72: =E68 -> 16.63296501 | G72: =IF(Design!$J$10="x",Panels!D72,0) -> 0 | H72: =IF(Design!$J$10="x",Panels!E72,0) -> 16.63296501 | J72: 0 | K72: 1.9 | L72: =(J72^2+K72^2)^0.5 -> 1.9
B74: Panel G | C74: (sides) | D74: =D3 -> 0 | E74: =E3 -> 0 | G74: =IF(Design!$J$11="x",Panels!D74,0) -> 0 | H74: =IF(Design!$J$11="x",Panels!E74,0) -> 0
D75: =D74+Box_Depth -> 71.12 | E75: =E74 -> 0 | G75: =IF(Design!$J$11="x",Panels!D75,0) -> 71.12 | H75: =IF(Design!$J$11="x",Panels!E75,0) -> 0 | J75: =D74-D75 -> -71.12 | K75: 0 | L75: =(J75^2+K75^2)^0.5 -> 71.12
D76: =D75 -> 71.12 | E76: =E75+Box_Height -> 81.28 | G76: =IF(Design!$J$11="x",Panels!D76,0) -> 71.12 | H76: =IF(Design!$J$11="x",Panels!E76,0) -> 81.28 | J76: 0 | K76: -81.28 | L76: =(J76^2+K76^2)^0.5 -> 81.28
D77: =D74 -> 0 | E77: =E76 -> 81.28 | G77: =IF(Design!$J$11="x",Panels!D77,0) -> 0 | H77: =IF(Design!$J$11="x",Panels!E77,0) -> 81.28 | J77: 71.12 | K77: 0 | L77: =(J77^2+K77^2)^0.5 -> 71.12
D78: =D74 -> 0 | E78: =E74 -> 0 | G78: =IF(Design!$J$11="x",Panels!D78,0) -> 0 | H78: =IF(Design!$J$11="x",Panels!E78,0) -> 0 | J78: 0 | K78: 81.28 | L78: =(J78^2+K78^2)^0.5 -> 81.28
B80: Panel H | C80: (port separator) | D80: =D50 -> 0 | E80: =E50 -> 1.9 | G80: =IF(Design!$J$12="x",Panels!D80,0) -> 0 | H80: =IF(Design!$J$12="x",Panels!E80,0) -> 1.9
D81: =D57 -> 69.22 | E81: =E80 -> 1.9 | G81: =IF(Design!$J$12="x",Panels!D81,0) -> 69.22 | H81: =IF(Design!$J$12="x",Panels!E81,0) -> 1.9 | J81: =D80-D81 -> -69.22 | K81: =E80-E81 -> 0 | L81: =(J81^2+K81^2)^0.5 -> 69.22
D82: =D81 -> 69.22 | E82: =E69 -> 16.63296501 | G82: =IF(Design!$J$12="x",Panels!D82,0) -> 69.22 | H82: =IF(Design!$J$12="x",Panels!E82,0) -> 16.63296501 | J82: 0 | K82: -14.73296501 | L82: =(J82^2+K82^2)^0.5 -> 14.73296501
D83: =D80 -> 0 | E83: =E82 -> 16.63296501 | G83: =IF(Design!$J$12="x",Panels!D83,0) -> 0 | H83: =IF(Design!$J$12="x",Panels!E83,0) -> 16.63296501 | J83: 69.22 | K83: 0 | L83: =(J83^2+K83^2)^0.5 -> 69.22
D84: =D80 -> 0 | E84: =E80 -> 1.9 | G84: =IF(Design!$J$12="x",Panels!D84,0) -> 0 | H84: =IF(Design!$J$12="x",Panels!E84,0) -> 1.9 | J84: 0 | K84: 14.73296501 | L84: =(J84^2+K84^2)^0.5 -> 14.73296501
B87: Profile View
D88: =D75+10 -> 81.12 | E88: =E74 -> 0 | G88: =IF(Design!$J$14="x",Panels!D88,"") -> 81.12 | H88: =IF(Design!$J$14="x",Panels!E88,"") -> 0
D89: =D88+Box_Width -> 141.12 | E89: =E88 -> 0 | G89: =IF(Design!$J$14="x",Panels!D89,"") -> 141.12 | H89: =IF(Design!$J$14="x",Panels!E89,"") -> 0 | J89: =D88-D89 -> -60 | K89: =E88-E89 -> 0 | L89: =(J89^2+K89^2)^0.5 -> 60
D90: =D89 -> 141.12 | E90: =E76 -> 81.28 | G90: =IF(Design!$J$14="x",Panels!D90,"") -> 141.12 | H90: =IF(Design!$J$14="x",Panels!E90,"") -> 81.28 | J90: 0 | K90: -81.28 | L90: =(J90^2+K90^2)^0.5 -> 81.28
D91: =D88 -> 81.12 | E91: =E90 -> 81.28 | G91: =IF(Design!$J$14="x",Panels!D91,"") -> 81.12 | H91: =IF(Design!$J$14="x",Panels!E91,"") -> 81.28 | J91: 60 | K91: 0 | L91: =(J91^2+K91^2)^0.5 -> 60
D92: =D88 -> 81.12 | E92: =E88 -> 0 | G92: =IF(Design!$J$14="x",Panels!D92,"") -> 81.12 | H92: =IF(Design!$J$14="x",Panels!E92,"") -> 0 | J92: 0 | K92: 81.28 | L92: =(J92^2+K92^2)^0.5 -> 81.28
D94: =D88 -> 81.12 | E94: =E88 -> 0 | G94: =IF(Design!$J$14="x",Panels!D94,"") -> 81.12 | H94: =IF(Design!$J$14="x",Panels!E94,"") -> 0
D95: =D94+p -> 83.02 | E95: =E94 -> 0 | G95: =IF(Design!$J$14="x",Panels!D95,"") -> 83.02 | H95: =IF(Design!$J$14="x",Panels!E95,"") -> 0 | J95: =D94-D95 -> -1.9 | K95: =E94-E95 -> 0 | L95: =(J95^2+K95^2)^0.5 -> 1.9
D96: =D95 -> 83.02 | E96: =E90 -> 81.28 | G96: =IF(Design!$J$14="x",Panels!D96,"") -> 83.02 | H96: =IF(Design!$J$14="x",Panels!E96,"") -> 81.28 | J96: 0 | K96: -81.28 | L96: =(J96^2+K96^2)^0.5 -> 81.28
D97: =D94 -> 81.12 | E97: =E96 -> 81.28 | G97: =IF(Design!$J$14="x",Panels!D97,"") -> 81.12 | H97: =IF(Design!$J$14="x",Panels!E97,"") -> 81.28 | J97: 1.9 | K97: 0 | L97: =(J97^2+K97^2)^0.5 -> 1.9
D98: =D94 -> 81.12 | E98: =E94 -> 0 | G98: =IF(Design!$J$14="x",Panels!D98,"") -> 81.12 | H98: =IF(Design!$J$14="x",Panels!E98,"") -> 0 | J98: 0 | K98: 81.28 | L98: =(J98^2+K98^2)^0.5 -> 81.28
D100: =D89-p -> 139.22 | E100: =E89 -> 0 | G100: =IF(Design!$J$14="x",Panels!D100,"") -> 139.22 | H100: =IF(Design!$J$14="x",Panels!E100,"") -> 0
D101: =D89 -> 141.12 | E101: =E100 -> 0 | G101: =IF(Design!$J$14="x",Panels!D101,"") -> 141.12 | H101: =IF(Design!$J$14="x",Panels!E101,"") -> 0 | J101: =D100-D101 -> -1.9 | K101: =E100-E101 -> 0 | L101: =(J101^2+K101^2)^0.5 -> 1.9
D102: =D101 -> 141.12 | E102: =E96 -> 81.28 | G102: =IF(Design!$J$14="x",Panels!D102,"") -> 141.12 | H102: =IF(Design!$J$14="x",Panels!E102,"") -> 81.28 | J102: 0 | K102: -81.28 | L102: =(J102^2+K102^2)^0.5 -> 81.28
D103: =D100 -> 139.22 | E103: =E102 -> 81.28 | G103: =IF(Design!$J$14="x",Panels!D103,"") -> 139.22 | H103: =IF(Design!$J$14="x",Panels!E103,"") -> 81.28 | J103: 1.9 | K103: 0 | L103: =(J103^2+K103^2)^0.5 -> 1.9
D104: =D100 -> 139.22 | E104: =E100 -> 0 | G104: =IF(Design!$J$14="x",Panels!D104,"") -> 139.22 | H104: =IF(Design!$J$14="x",Panels!E104,"") -> 0 | J104: 0 | K104: 81.28 | L104: =(J104^2+K104^2)^0.5 -> 81.28
D106: =D95 -> 83.02 | E106: =E95 -> 0 | G106: =IF(Design!$J$14="x",Panels!D106,"") -> 83.02 | H106: =IF(Design!$J$14="x",Panels!E106,"") -> 0
D107: =D95 -> 83.02 | E107: =E106+p -> 1.9 | G107: =IF(Design!$J$14="x",Panels!D107,"") -> 83.02 | H107: =IF(Design!$J$14="x",Panels!E107,"") -> 1.9 | J107: =D106-D107 -> 0 | K107: =E106-E107 -> -1.9 | L107: =(J107^2+K107^2)^0.5 -> 1.9
D108: =D100 -> 139.22 | E108: =E107 -> 1.9 | G108: =IF(Design!$J$14="x",Panels!D108,"") -> 139.22 | H108: =IF(Design!$J$14="x",Panels!E108,"") -> 1.9 | J108: -56.2 | K108: 0 | L108: =(J108^2+K108^2)^0.5 -> 56.2
D109: =D108 -> 139.22 | E109: =E106 -> 0 | G109: =IF(Design!$J$14="x",Panels!D109,"") -> 139.22 | H109: =IF(Design!$J$14="x",Panels!E109,"") -> 0 | J109: 0 | K109: 1.9 | L109: =(J109^2+K109^2)^0.5 -> 1.9
D110: =D106 -> 83.02 | E110: =E106 -> 0 | G110: =IF(Design!$J$14="x",Panels!D110,"") -> 83.02 | H110: =IF(Design!$J$14="x",Panels!E110,"") -> 0 | J110: 56.2 | K110: 0 | L110: =(J110^2+K110^2)^0.5 -> 56.2
D112: =D106 -> 83.02 | E112: =E96 -> 81.28 | G112: =IF(Design!$J$14="x",Panels!D112,"") -> 83.02 | H112: =IF(Design!$J$14="x",Panels!E112,"") -> 81.28
D113: =D103 -> 139.22 | E113: =E112 -> 81.28 | G113: =IF(Design!$J$14="x",Panels!D113,"") -> 139.22 | H113: =IF(Design!$J$14="x",Panels!E113,"") -> 81.28 | J113: =D112-D113 -> -56.2 | K113: =E112-E113 -> 0 | L113: =(J113^2+K113^2)^0.5 -> 56.2
D114: =D113 -> 139.22 | E114: =E113-p -> 79.38 | G114: =IF(Design!$J$14="x",Panels!D114,"") -> 139.22 | H114: =IF(Design!$J$14="x",Panels!E114,"") -> 79.38 | J114: 0 | K114: 1.9 | L114: =(J114^2+K114^2)^0.5 -> 1.9
D115: =D112 -> 83.02 | E115: =E114 -> 79.38 | G115: =IF(Design!$J$14="x",Panels!D115,"") -> 83.02 | H115: =IF(Design!$J$14="x",Panels!E115,"") -> 79.38 | J115: 56.2 | K115: 0 | L115: =(J115^2+K115^2)^0.5 -> 56.2
D116: =D112 -> 83.02 | E116: =E112 -> 81.28 | G116: =IF(Design!$J$14="x",Panels!D116,"") -> 83.02 | H116: =IF(Design!$J$14="x",Panels!E116,"") -> 81.28 | J116: 0 | K116: -1.9 | L116: =(J116^2+K116^2)^0.5 -> 1.9
D118: =D112 -> 83.02 | E118: =E68 -> 16.63296501 | G118: =IF(Design!$J$14="x",Panels!D118,"") -> 83.02 | H118: =IF(Design!$J$14="x",Panels!E118,"") -> 16.63296501
D119: =D109 -> 139.22 | E119: =E118 -> 16.63296501 | G119: =IF(Design!$J$14="x",Panels!D119,"") -> 139.22 | H119: =IF(Design!$J$14="x",Panels!E119,"") -> 16.63296501 | J119: =D118-D119 -> -56.2 | K119: =E118-E119 -> 0 | L119: =(J119^2+K119^2)^0.5 -> 56.2
D120: =D119 -> 139.22 | E120: =E70 -> 18.53296501 | G120: =IF(Design!$J$14="x",Panels!D120,"") -> 139.22 | H120: =IF(Design!$J$14="x",Panels!E120,"") -> 18.53296501 | J120: 0 | K120: -1.9 | L120: =(J120^2+K120^2)^0.5 -> 1.9
D121: =D118 -> 83.02 | E121: =E120 -> 18.53296501 | G121: =IF(Design!$J$14="x",Panels!D121,"") -> 83.02 | H121: =IF(Design!$J$14="x",Panels!E121,"") -> 18.53296501 | J121: 56.2 | K121: 0 | L121: =(J121^2+K121^2)^0.5 -> 56.2
D122: =D118 -> 83.02 | E122: =E118 -> 16.63296501 | G122: =IF(Design!$J$14="x",Panels!D122,"") -> 83.02 | H122: =IF(Design!$J$14="x",Panels!E122,"") -> 16.63296501 | J122: 0 | K122: 1.9 | L122: =(J122^2+K122^2)^0.5 -> 1.9
D124: =(D96+D108-p)/2 -> 110.17 | E124: =E108 -> 1.9 | G124: =IF(Design!$J$14="x",Panels!D124,"") -> 110.17 | H124: =IF(Design!$J$14="x",Panels!E124,"") -> 1.9
D125: =D124+p -> 112.07 | E125: =E124 -> 1.9 | G125: =IF(Design!$J$14="x",Panels!D125,"") -> 112.07 | H125: =IF(Design!$J$14="x",Panels!E125,"") -> 1.9 | J125: =D124-D125 -> -1.9 | K125: =E124-E125 -> 0 | L125: =(J125^2+K125^2)^0.5 -> 1.9
D126: =D125 -> 112.07 | E126: =E82 -> 16.63296501 | G126: =IF(Design!$J$14="x",Panels!D126,"") -> 112.07 | H126: =IF(Design!$J$14="x",Panels!E126,"") -> 16.63296501 | J126: 0 | K126: -14.73296501 | L126: =(J126^2+K126^2)^0.5 -> 14.73296501
D127: =D124 -> 110.17 | E127: =E126 -> 16.63296501 | G127: =IF(Design!$J$14="x",Panels!D127,"") -> 110.17 | H127: =IF(Design!$J$14="x",Panels!E127,"") -> 16.63296501 | J127: 1.9 | K127: 0 | L127: =(J127^2+K127^2)^0.5 -> 1.9
D128: =D124 -> 110.17 | E128: =E124 -> 1.9 | G128: =IF(Design!$J$14="x",Panels!D128,"") -> 110.17 | H128: =IF(Design!$J$14="x",Panels!E128,"") -> 1.9 | J128: 0 | K128: 14.73296501 | L128: =(J128^2+K128^2)^0.5 -> 14.73296501

Sheet Path (hidden)
B3: Path Calculations | D3: x | E3: y | G3: x | H3: y | J3: d | K3: x | L3: y | M3: dS | N3: d | O3: L | P3: S | Y3: Intersection points | Z3: x1 | AA3: y1 | AB3: x2 | AC3: y2 | AD3: a | AE3: b | AF3: x | AG3: y
D5: =AF6 -> 71.96826148 | E5: =AG6 -> 79.38 | G5: =IF(Design!$J$18="x",D5,0) -> 71.96826148 | H5: =IF(Design!$J$18="x",E5,0) -> 79.38 | I5: =SUM(D5:D6)/2 -> 69.26057776 | J5: =SUM(E5:E6)/2 -> 57.26164339 | K5: =IF(Design!$J$17="x",I5,0) -> 69.26057776 | L5: =IF(Design!$J$17="x",J5,0) -> 57.26164339 | N5: =N4 -> 0 | O5: 0 | P5: =P4 -> 0 | Y5: Sample point | Z5: =D6 -> 66.55289404 | AA5: =E6 -> 35.14328678 | AB5: =Z5+10*Panels!Q30 -> 67.76800243 | AC5: =AA5+10*Panels!P30 -> 45.06918782 | AD5: =(AC5-AA5)/(AB5-Z5) -> 8.168737149 | AE5: =(AC5*Z5-AA5*AB5)/(Z5-AB5) -> -508.5098111
B6: S1 | C6: =C2+1 -> 1 | D6: =(Panels!D58+D9)/2 -> 66.55289404 | E6: =(Panels!E62+E9)/2 -> 35.14328678 | G6: =IF(Design!$J$18="x",D6,0) -> 66.55289404 | H6: =IF(Design!$J$18="x",E6,0) -> 35.14328678 | K6: =K5 -> 69.26057776 | L6: =L5 -> 57.26164339 | N6: =N5 -> 0 | O6: =O5 -> 0 | P6: 0 | Y6: Panel C | Z6: =Panels!D44 -> 0 | AA6: =Panels!E44 -> 79.38 | AB6: =Panels!D45 -> 71.12 | AC6: =Panels!E45 -> 79.38 | AD6: =(AC6-AA6)/(AB6-Z6) -> 0 | AE6: =(AC6*Z6-AA6*AB6)/(Z6-AB6) -> 79.38 | AF6: =(AE5-AE6)/(AD6-AD5) -> 71.96826148 | AG6: =AF6*AD6+AE6 -> 79.38
K7: =K6 -> 69.26057776 | L7: =L6 -> 57.26164339 | N7: 0 | O7: =O4+N7 -> 0 | P7: =(((D5-D6)^2+(E5-E6)^2)^0.5)*Design!$D$20 -> 2504.662571 | Q7: =P7/2 -> 1252.331285 | R7: =-Q7 -> -1252.331285 | S7: =(Q7-T7)*2 -> 0.0004572243056 | T7: =(($E$69-$E$68)*(O7-$F$68)/($F$69-$F$68)+$E$68)/2 -> 1252.331057 | U7: =-T7 -> -1252.331057 | V7: =IF(C6>0,L7,"") -> 57.26164339
D8: =Panels!D58 -> 69.22 | E8: =E5 -> 79.38 | G8: =IF(Design!$J$18="x",D8,0) -> 69.22 | H8: =IF(Design!$J$18="x",E8,0) -> 79.38 | I8: =SUM(D8:D9)/2 -> 66.55289404 | J8: =SUM(E8:E9)/2 -> 57.59311246 | K8: =IF(Design!$J$17="x",I8,0) -> 66.55289404 | L8: =IF(Design!$J$17="x",J8,0) -> 57.59311246 | N8: =N7 -> 0 | O8: 0 | P8: =P7 -> 2504.662571 | Q8: =P8/2 -> 1252.331285 | R8: =-Q8 -> -1252.331285 | S8: =(Q8-T8)*2 -> 0.0004572243056 | T8: =(($E$69-$E$68)*(O8-$F$68)/($F$69-$F$68)+$E$68)/2 -> 1252.331057 | U8: =-T8 -> -1252.331057 | V8: =IF(C9>0,L8,"") -> 57.59311246 | Y8: Sample point | Z8: =Panels!D58 -> 69.22 | AA8: =Panels!E58 -> 79.38 | AB8: =Z8+10*Panels!Q30 -> 70.43510839 | AC8: =AA8+10*Panels!P30 -> 89.30590105 | AD8: =(AC8-AA8)/(AB8-Z8) -> 8.168737149 | AE8: =(AC8*Z8-AA8*AB8)/(Z8-AB8) -> -486.0599854
C9: =C6+1 -> 2 | D9: =AF9 -> 63.88578808 | E9: =AG9 -> 35.80622492 | G9: =IF(Design!$J$18="x",D9,0) -> 63.88578808 | H9: =IF(Design!$J$18="x",E9,0) -> 35.80622492 | K9: =K8 -> 66.55289404 | L9: =L8 -> 57.59311246 | N9: =N8 -> 0 | O9: 0 | P9: =P8 -> 2504.662571 | Q9: 1252.331285 | R9: -1252.331285 | S9: 0.0004572243056 | T9: 1252.331057 | U9: -1252.331057 | V9: =IF(C9>0,L9,"") -> 57.59311246 | Y9: Panel E | Z9: =Panels!D62 -> 69.22 | AA9: =Panels!E62 -> 34.48034863 | AB9: =Panels!D63 -> 32.83920821 | AC9: =Panels!E63 -> 43.52318943 | AD9: =(AC9-AA9)/(AB9-Z9) -> -0.2485608573 | AE9: =(AC9*Z9-AA9*AB9)/(Z9-AB9) -> 51.68573118 | AF9: =(AE8-AE9)/(AD9-AD8) -> 63.88578808 | AG9: =AF9*AD9+AE9 -> 35.80622492
K10: =K9 -> 66.55289404 | L10: =L9 -> 57.59311246 | N10: =((I8-I5)^2+(J8-J5)^2)^0.5 -> 2.727897155 | O10: =O7+N10 -> 2.727897155 | P10: =(((D8-D9)^2+(E8-E9)^2)^0.5)*Design!$D$20 -> 2467.127315 | Q10: 1233.563657 | R10: -1233.563657 | S10: 0 | T10: 1233.563657 | U10: -1233.563657 | V10: =IF(C9>0,L10,"") -> 57.59311246
D11: =Panels!D63 -> 32.83920821 | E11: =Panels!E63 -> 43.52318943 | G11: =IF(Design!$J$18="x",D11,0) -> 32.83920821 | H11: =IF(Design!$J$18="x",E11,0) -> 43.52318943 | I11: =SUM(D11:D12)/2 -> 35.01770378 | J11: =SUM(E11:E12)/2 -> 61.45159471 | K11: =IF(Design!$J$17="x",I11,0) -> 35.01770378 | L11: =IF(Design!$J$17="x",J11,0) -> 61.45159471 | N11: =N10 -> 2.727897155 | O11: 2.727897155 | P11: =P10 -> 2467.127315 | Q11: =P11/2 -> 1233.563657 | R11: =-Q11 -> -1233.563657 | S11: =(Q11-T11)*2 -> 0 | T11: 1233.563657 | U11: =-T11 -> -1233.563657 | V11: =IF(C12>0,L11,"") -> 61.45159471
C12: =C9+1 -> 3 | D12: =D11+(E5-E11)*Panels!Q30 -> 37.19619935 | E12: =E5 -> 79.38 | G12: =IF(Design!$J$18="x",D12,0) -> 37.19619935 | H12: =IF(Design!$J$18="x",E12,0) -> 79.38 | K12: =K11 -> 35.01770378 | L12: =L11 -> 61.45159471 | N12: =N11 -> 2.727897155 | O12: 2.727897155 | P12: =P11 -> 2467.127315 | Q12: 1233.563657 | R12: -1233.563657 | S12: 0 | T12: 1233.563657 | U12: -1233.563657 | V12: =IF(C12>0,L12,"") -> 61.45159471
K13: =K12 -> 35.01770378 | L13: =L12 -> 61.45159471 | N13: =((I11-I8)^2+(J11-J8)^2)^0.5 -> 31.77036528 | O13: =O10+N13 -> 34.49826243 | P13: =(((D11-D12)^2+(E11-E12)^2)^0.5)*Design!$D$20 -> 2029.974991 | Q13: 1014.987495 | R13: -1014.987495 | S13: -0.004513335514 | T13: 1014.989752 | U13: -1014.989752 | V13: =IF(C12>0,L13,"") -> 61.45159471
D14: =(D12+Panels!D40)/2 -> 20.49809968 | E14: =E12 -> 79.38 | G14: =IF(Design!$J$18="x",D14,0) -> 20.49809968 | H14: =IF(Design!$J$18="x",E14,0) -> 79.38 | I14: =SUM(D14:D15)/2 -> 26.66865394 | J14: =SUM(E14:E15)/2 -> 61.45159471 | K14: =IF(Design!$J$17="x",I14,0) -> 26.66865394 | L14: =IF(Design!$J$17="x",J14,0) -> 61.45159471 | N14: =N13 -> 31.77036528 | O14: =O13 -> 34.49826243 | P14: 2029.974991 | Q14: 1014.987495 | R14: -1014.987495 | S14: -0.004513335514 | T14: 1014.989752 | U14: -1014.989752 | V14: =IF(C15>0,L14,"") -> 61.45159471
C15: =C12+1 -> 4 | D15: =D11 -> 32.83920821 | E15: =E11 -> 43.52318943 | G15: =IF(Design!$J$18="x",D15,0) -> 32.83920821 | H15: =IF(Design!$J$18="x",E15,0) -> 43.52318943 | K15: =K14 -> 26.66865394 | L15: =L14 -> 61.45159471 | N15: =N14 -> 31.77036528 | O15: =O14 -> 34.49826243 | P15: 2029.974991 | Q15: 1014.987495 | R15: -1014.987495 | S15: -0.004513335514 | T15: 1014.989752 | U15: -1014.989752 | V15: =IF(C15>0,L15,"") -> 61.45159471
K16: =K15 -> 26.66865394 | L16: =L15 -> 61.45159471 | N16: =((I14-I11)^2+(J14-J11)^2)^0.5 -> 8.349049838 | O16: =O13+N16 -> 42.84731227 | P16: =(((D14-D15)^2+(E14-E15)^2)^0.5)*Design!$D$20 -> 2131.168783 | Q16: 1065.584392 | R16: -1065.584392 | S16: 216.0689422 | T16: 957.5499206 | U16: -957.5499206 | V16: =IF(C15>0,L16,"") -> 61.45159471
D17: =Panels!D40 -> 3.8 | E17: =(E14+E20)/2 -> 63.21588399 | G17: =IF(Design!$J$18="x",D17,0) -> 3.8 | H17: =IF(Design!$J$18="x",E17,0) -> 63.21588399 | I17: =SUM(D17:D18)/2 -> 18.31960411 | J17: =SUM(E17:E18)/2 -> 53.36953671 | K17: =IF(Design!$J$17="x",I17,0) -> 18.31960411 | L17: =IF(Design!$J$17="x",J17,0) -> 53.36953671 | N17: =N16 -> 8.349049838 | O17: =O16 -> 42.84731227 | P17: 2131.168783 | Q17: 1065.584392 | R17: -1065.584392 | S17: 216.0689422 | T17: 957.5499206 | U17: -957.5499206 | V17: =IF(C18>0,L17,"") -> 53.36953671
C18: =C15+1 -> 5 | D18: =D15 -> 32.83920821 | E18: =E15 -> 43.52318943 | G18: =IF(Design!$J$18="x",D18,0) -> 32.83920821 | H18: =IF(Design!$J$18="x",E18,0) -> 43.52318943 | K18: =K17 -> 18.31960411 | L18: =L17 -> 53.36953671 | N18: =N17 -> 8.349049838 | O18: =O17 -> 42.84731227 | P18: 2131.168783 | Q18: 1065.584392 | R18: -1065.584392 | S18: 216.0689422 | T18: 957.5499206 | U18: -957.5499206 | V18: =IF(C18>0,L18,"") -> 53.36953671
K19: =K18 -> 18.31960411 | L19: =L18 -> 53.36953671 | N19: =((I17-I14)^2+(J17-J14)^2)^0.5 -> 11.62008153 | O19: =O16+N19 -> 54.4673938 | P19: =(((D17-D18)^2+(E17-E18)^2)^0.5)*Design!$D$20 -> 1971.873594 | Q19: 985.936797 | R19: -985.936797 | S19: 216.6615335 | T19: 877.6060302 | U19: -877.6060302 | V19: =IF(C18>0,L19,"") -> 53.36953671
D20: =D17 -> 3.8 | E20: =E21+(D21-D20)*Panels!Q30 -> 47.05176798 | G20: =IF(Design!$J$18="x",D20,0) -> 3.8 | H20: =IF(Design!$J$18="x",E20,0) -> 47.05176798 | I20: =SUM(D20:D21)/2 -> 18.31960411 | J20: =SUM(E20:E21)/2 -> 45.28747871 | K20: =IF(Design!$J$17="x",I20,0) -> 18.31960411 | L20: =IF(Design!$J$17="x",J20,0) -> 45.28747871 | N20: =N19 -> 11.62008153 | O20: 54.4673938 | P20: 1971.873594 | Q20: 985.936797 | R20: -985.936797 | S20: 216.6615335 | T20: 877.6060302 | U20: -877.6060302 | V20: =IF(C21>0,L20,"") -> 45.28747871
C21: =C18+1 -> 6 | D21: =D18 -> 32.83920821 | E21: =E18 -> 43.52318943 | G21: =IF(Design!$J$18="x",D21,0) -> 32.83920821 | H21: =IF(Design!$J$18="x",E21,0) -> 43.52318943 | K21: =K20 -> 18.31960411 | L21: =L20 -> 45.28747871 | N21: =N20 -> 11.62008153 | O21: 54.4673938 | P21: 1971.873594 | Q21: 985.936797 | R21: -985.936797 | S21: 216.6615335 | T21: 877.6060302 | U21: -877.6060302 | V21: =IF(C21>0,L21,"") -> 45.28747871
K22: =K21 -> 18.31960411 | L22: =L21 -> 45.28747871 | N22: =((I20-I17)^2+(J20-J17)^2)^0.5 -> 8.082058004 | O22: =O19+N22 -> 62.5494518 | P22: =(((D20-D21)^2+(E20-E21)^2)^0.5)*Design!$D$20 -> 1644.007526 | Q22: 822.0037628 | R22: -822.0037628 | S22: 0.001424938099 | T22: 822.0030504 | U22: -822.0030504 | V22: =IF(C21>0,L22,"") -> 45.28747871
D23: =D20 -> 3.8 | E23: =E24+(D24-D23)*Panels!Q30 -> 45.15218373 | G23: =IF(Design!$J$18="x",D23,0) -> 3.8 | H23: =IF(Design!$J$18="x",E23,0) -> 45.15218373 | I23: =SUM(D23:D24)/2 -> 18.09044424 | J23: =SUM(E23:E24)/2 -> 43.41573986 | K23: =IF(Design!$J$17="x",I23,0) -> 18.09044424 | L23: =IF(Design!$J$17="x",J23,0) -> 43.41573986 | N23: =N22 -> 8.082058004 | O23: 62.5494518 | P23: 1644.007526 | Q23: 822.0037628 | R23: -822.0037628 | S23: 0.001424938099 | T23: 822.0030504 | U23: -822.0030504 | V23: =IF(C24>0,L23,"") -> 43.41573986
C24: =C21+1 -> 7 | D24: =Panels!D64 -> 32.38088848 | E24: =Panels!E64 -> 41.67929599 | G24: =IF(Design!$J$18="x",D24,0) -> 32.38088848 | H24: =IF(Design!$J$18="x",E24,0) -> 41.67929599 | K24: =K23 -> 18.09044424 | L24: =L23 -> 43.41573986 | N24: =N23 -> 8.082058004 | O24: 62.5494518 | P24: 1644.007526 | Q24: 822.0037628 | R24: -822.0037628 | S24: 0.001424938099 | T24: 822.0030504 | U24: -822.0030504 | V24: =IF(C24>0,L24,"") -> 43.41573986
K25: =K24 -> 18.09044424 | L25: =L24 -> 43.41573986 | N25: =((I23-I20)^2+(J23-J20)^2)^0.5 -> 1.885714868 | O25: =O22+N25 -> 64.43516667 | P25: =(((D23-D24)^2+(E23-E24)^2)^0.5)*Design!$D$20 -> 1618.0605 | Q25: 809.0302498 | R25: -809.0302498 | S25: 0.001098510291 | T25: 809.0297006 | U25: -809.0297006 | V25: =IF(C24>0,L25,"") -> 43.41573986
D26: =D17 -> 3.8 | E26: =(E23+E29)/2 -> 31.84257437 | G26: =IF(Design!$J$18="x",D26,0) -> 3.8 | H26: =IF(Design!$J$18="x",E26,0) -> 31.84257437 | I26: =SUM(D26:D27)/2 -> 18.09044424 | J26: =SUM(E26:E27)/2 -> 36.76093518 | K26: =IF(Design!$J$17="x",I26,0) -> 18.09044424 | L26: =IF(Design!$J$17="x",J26,0) -> 36.76093518 | N26: =N25 -> 1.885714868 | O26: 64.43516667 | P26: 1618.0605 | Q26: 809.0302498 | R26: -809.0302498 | S26: 0.001098510291 | T26: 809.0297006 | U26: -809.0297006 | V26: =IF(C27>0,L26,"") -> 36.76093518
C27: =C24+1 -> 8 | D27: =D24 -> 32.38088848 | E27: =E24 -> 41.67929599 | G27: =IF(Design!$J$18="x",D27,0) -> 32.38088848 | H27: =IF(Design!$J$18="x",E27,0) -> 41.67929599 | K27: =K26 -> 18.09044424 | L27: =L26 -> 36.76093518 | N27: =N26 -> 1.885714868 | O27: 64.43516667 | P27: 1618.0605 | Q27: 809.0302498 | R27: -809.0302498 | S27: 0.001098510291 | T27: 809.0297006 | U27: -809.0297006 | V27: =IF(C27>0,L27,"") -> 36.76093518
K28: =K27 -> 18.09044424 | L28: =L27 -> 36.76093518 | N28: =((I26-I23)^2+(J26-J23)^2)^0.5 -> 6.654804679 | O28: =O25+N28 -> 71.08997135 | P28: =(((D26-D27)^2+(E26-E27)^2)^0.5)*Design!$D$20 -> 1698.717192 | Q28: 849.3585962 | R28: -849.3585962 | S28: 172.2253031 | T28: 763.2459447 | U28: -763.2459447 | V28: =IF(C27>0,L28,"") -> 36.76093518
D29: =(D26+D32)/2 -> 16.67368112 | E29: =Panels!E70 -> 18.53296501 | G29: =IF(Design!$J$18="x",D29,0) -> 16.67368112 | H29: =IF(Design!$J$18="x",E29,0) -> 18.53296501 | I29: =SUM(D29:D30)/2 -> 24.5272848 | J29: =SUM(E29:E30)/2 -> 30.1061305 | K29: =IF(Design!$J$17="x",I29,0) -> 24.5272848 | L29: =IF(Design!$J$17="x",J29,0) -> 30.1061305 | N29: =N28 -> 6.654804679 | O29: 71.08997135 | P29: 1698.717192 | Q29: 849.3585962 | R29: -849.3585962 | S29: 172.2253031 | T29: 763.2459447 | U29: -763.2459447 | V29: =IF(C30>0,L29,"") -> 30.1061305
C30: =C27+1 -> 9 | D30: =D27 -> 32.38088848 | E30: =E27 -> 41.67929599 | G30: =IF(Design!$J$18="x",D30,0) -> 32.38088848 | H30: =IF(Design!$J$18="x",E30,0) -> 41.67929599 | K30: =K29 -> 24.5272848 | L30: =L29 -> 30.1061305 | N30: =N29 -> 6.654804679 | O30: 71.08997135 | P30: 1698.717192 | Q30: 849.3585962 | R30: -849.3585962 | S30: 172.2253031 | T30: 763.2459447 | U30: -763.2459447 | V30: =IF(C30>0,L30,"") -> 30.1061305
K31: =K30 -> 24.5272848 | L31: =L30 -> 30.1061305 | N31: =((I29-I26)^2+(J29-J26)^2)^0.5 -> 9.258474051 | O31: =O28+N31 -> 80.3484454 | P31: =(((D29-D30)^2+(E29-E30)^2)^0.5)*Design!$D$20 -> 1572.062782 | Q31: 786.031391 | R31: -786.031391 | S31: 172.9638773 | T31: 699.5494523 | U31: -699.5494523 | V31: =IF(C30>0,L31,"") -> 30.1061305
D32: =AF33 -> 29.54736225 | E32: =AG33 -> 18.53296501 | G32: =IF(Design!$J$18="x",D32,0) -> 29.54736225 | H32: =IF(Design!$J$18="x",E32,0) -> 18.53296501 | I32: =SUM(D32:D33)/2 -> 30.96412536 | J32: =SUM(E32:E33)/2 -> 30.1061305 | K32: =IF(Design!$J$17="x",I32,0) -> 30.96412536 | L32: =IF(Design!$J$17="x",J32,0) -> 30.1061305 | N32: =N31 -> 9.258474051 | O32: 80.3484454 | P32: 1572.062782 | Q32: 786.031391 | R32: -786.031391 | S32: 172.9638773 | T32: 699.5494523 | U32: -699.5494523 | V32: =IF(C33>0,L32,"") -> 30.1061305 | Y32: Sample Point | Z32: =Panels!D64 -> 32.38088848 | AA32: =Panels!E64 -> 41.67929599 | AB32: =Z32-10*Panels!Q30 -> 31.16578009 | AC32: =AA32-10*Panels!P30 -> 31.75339494 | AD32: =(AC32-AA32)/(AB32-Z32) -> 8.168737149 | AE32: =(AC32*Z32-AA32*AB32)/(Z32-AB32) -> -222.8316706
C33: =C30+1 -> 10 | D33: =D30 -> 32.38088848 | E33: =E30 -> 41.67929599 | G33: =IF(Design!$J$18="x",D33,0) -> 32.38088848 | H33: =IF(Design!$J$18="x",E33,0) -> 41.67929599 | K33: =K32 -> 30.96412536 | L33: =L32 -> 30.1061305 | N33: =N32 -> 9.258474051 | O33: 80.3484454 | P33: 1572.062782 | Q33: 786.031391 | R33: -786.031391 | S33: 172.9638773 | T33: 699.5494523 | U33: -699.5494523 | V33: =IF(C33>0,L33,"") -> 30.1061305 | Y33: Sample Point | Z33: =Panels!D71 -> 0 | AA33: =Panels!E71 -> 18.53296501 | AB33: =Panels!D70 -> 54.98512456 | AC33: =Panels!E70 -> 18.53296501 | AD33: =(AC33-AA33)/(AB33-Z33) -> 0 | AE33: =(AC33*Z33-AA33*AB33)/(Z33-AB33) -> 18.53296501 | AF33: =(AE32-AE33)/(AD33-AD32) -> 29.54736225 | AG33: =AF33*AD33+AE33 -> 18.53296501
K34: =K33 -> 30.96412536 | L34: =L33 -> 30.1061305 | N34: =((I32-I29)^2+(J32-J29)^2)^0.5 -> 6.436840562 | O34: =O31+N34 -> 86.78528596 | P34: =(((D32-D33)^2+(E32-E33)^2)^0.5)*Design!$D$20 -> 1310.534726 | Q34: 655.267363 | R34: -655.267363 | S34: 0.004231987533 | T34: 655.265247 | U34: -655.265247 | V34: =IF(C33>0,L34,"") -> 30.1061305
D35: =AF36 -> 57.06747957 | E35: =AG36 -> 35.54317574 | G35: =IF(Design!$J$18="x",D35,0) -> 57.06747957 | H35: =IF(Design!$J$18="x",E35,0) -> 35.54317574 | I35: =SUM(D35:D36)/2 -> 56.02630206 | J35: =SUM(E35:E36)/2 -> 27.03807038 | K35: =IF(Design!$J$17="x",I35,0) -> 56.02630206 | L35: =IF(Design!$J$17="x",J35,0) -> 27.03807038 | N35: =N34 -> 6.436840562 | O35: 86.78528596 | P35: 1310.534726 | Q35: 655.267363 | R35: -655.267363 | S35: 0.004231987533 | T35: 655.265247 | U35: -655.265247 | V35: =IF(C36>0,L35,"") -> 27.03807038 | Y35: Panel E (bottom) | Z35: =Panels!D64 -> 32.38088848 | AA35: =Panels!E64 -> 41.67929599 | AB35: =Panels!D65 -> 68.76168027 | AC35: =Panels!E65 -> 32.63645519 | AD35: =(AC35-AA35)/(AB35-Z35) -> -0.2485608573 | AE35: =(AC35*Z35-AA35*AB35)/(Z35-AB35) -> 49.72791739
C36: =C33+1 -> 11 | D36: =Panels!D70 -> 54.98512456 | E36: =Panels!E70 -> 18.53296501 | G36: =IF(Design!$J$18="x",D36,0) -> 54.98512456 | H36: =IF(Design!$J$18="x",E36,0) -> 18.53296501 | K36: =K35 -> 56.02630206 | L36: =L35 -> 27.03807038 | N36: =N35 -> 6.436840562 | O36: 86.78528596 | P36: 1310.534726 | Q36: 655.267363 | R36: -655.267363 | S36: 0.004231987533 | T36: 655.265247 | U36: -655.265247 | V36: =IF(C36>0,L36,"") -> 27.03807038 | Y36: Sample Point | Z36: =Panels!D70 -> 54.98512456 | AA36: =Panels!E70 -> 18.53296501 | AB36: =Z36+10*Panels!Q30 -> 56.20023295 | AC36: =AA36+10*Panels!P30 -> 28.45886606 | AD36: =(AC36-AA36)/(AB36-Z36) -> 8.168737149 | AE36: =(AC36*Z36-AA36*AB36)/(Z36-AB36) -> -430.6260646 | AF36: =(AE35-AE36)/(AD36-AD35) -> 57.06747957 | AG36: =AF36*AD36+AE36 -> 35.54317574
K37: =K36 -> 56.02630206 | L37: =L36 -> 27.03807038 | N37: =((I35-I32)^2+(J35-J32)^2)^0.5 -> 25.24927115 | O37: =O34+N37 -> 112.0345571 | P37: =(((D35-D36)^2+(E35-E36)^2)^0.5)*Design!$D$20 -> 963.1103903 | Q37: 481.5551952 | R37: -481.5551952 | S37: -5.635308753e-08 | T37: 481.5551952 | U37: -481.5551952 | V37: =IF(C36>0,L37,"") -> 27.03807038
D38: =(D35+AF39)/2 -> 63.14373978 | E38: =(E35+AG39)/2 -> 34.03285529 | G38: =IF(Design!$J$18="x",D38,0) -> 63.14373978 | H38: =IF(Design!$J$18="x",E38,0) -> 34.03285529 | I38: =SUM(D38:D39)/2 -> 59.06443217 | J38: =SUM(E38:E39)/2 -> 26.28291015 | K38: =IF(Design!$J$17="x",I38,0) -> 59.06443217 | L38: =IF(Design!$J$17="x",J38,0) -> 26.28291015 | N38: =N37 -> 25.24927115 | O38: 112.0345571 | P38: 963.1103903 | Q38: 481.5551952 | R38: -481.5551952 | S38: -5.635308753e-08 | T38: 481.5551952 | U38: -481.5551952 | V38: =IF(C39>0,L38,"") -> 26.28291015 | Y38: Panel E (bottom) | Z38: =Panels!D64 -> 32.38088848 | AA38: =Panels!E64 -> 41.67929599 | AB38: =Panels!D65 -> 68.76168027 | AC38: =Panels!E65 -> 32.63645519 | AD38: =(AC38-AA38)/(AB38-Z38) -> -0.2485608573 | AE38: =(AC38*Z38-AA38*AB38)/(Z38-AB38) -> 49.72791739
C39: =C36+1 -> 12 | D39: =D36 -> 54.98512456 | E39: =E36 -> 18.53296501 | G39: =IF(Design!$J$18="x",D39,0) -> 54.98512456 | H39: =IF(Design!$J$18="x",E39,0) -> 18.53296501 | K39: =K38 -> 59.06443217 | L39: =L38 -> 26.28291015 | N39: =N38 -> 25.24927115 | O39: 112.0345571 | P39: 963.1103903 | Q39: 481.5551952 | R39: -481.5551952 | S39: -5.635308753e-08 | T39: 481.5551952 | U39: -481.5551952 | V39: =IF(C39>0,L39,"") -> 26.28291015 | Y39: Sample Point | Z39: =Panels!D57 -> 69.22 | AA39: =Panels!E57 -> 1.9 | AB39: =Panels!D58 -> 69.22 | AC39: =Panels!E58 -> 79.38 | AD39: =IF(Z39<>AB39,(AC39-AA39)/(AB39-Z39),"") ->  | AE39: =IF(Z39<>AB39,(AC39*Z39-AA39*AB39)/(Z39-AB39),"") ->  | AF39: =IF(AD39<>"",(AE38-AE39)/(AD39-AD38),Z39) -> 69.22 | AG39: =AF39*AD38+AE38 -> 32.52253484
K40: =K39 -> 59.06443217 | L40: =L39 -> 26.28291015 | N40: =((I38-I35)^2+(J38-J35)^2)^0.5 -> 3.13057527 | O40: =O37+N40 -> 115.1651324 | P40: =(((D38-D39)^2+(E38-E39)^2)^0.5)*Design!$D$20 -> 984.3981496 | Q40: 492.1990748 | R40: -492.1990748 | S40: 64.36325154 | T40: 460.017449 | U40: -460.017449 | V40: =IF(C39>0,L40,"") -> 26.28291015
D41: =(Panels!D57+AF39)/2 -> 69.22 | E41: =(Panels!E70+AG39)/2 -> 25.52774993 | G41: =IF(Design!$J$18="x",D41,0) -> 69.22 | H41: =IF(Design!$J$18="x",E41,0) -> 25.52774993 | I41: =SUM(D41:D42)/2 -> 62.10256228 | J41: =SUM(E41:E42)/2 -> 22.03035747 | K41: =IF(Design!$J$17="x",I41,0) -> 62.10256228 | L41: =IF(Design!$J$17="x",J41,0) -> 22.03035747 | N41: =N40 -> 3.13057527 | O41: 115.1651324 | P41: 984.3981496 | Q41: 492.1990748 | R41: -492.1990748 | S41: 64.36325154 | T41: 460.017449 | U41: -460.017449 | V41: =IF(C42>0,L41,"") -> 22.03035747
C42: =C39+1 -> 13 | D42: =D39 -> 54.98512456 | E42: =E39 -> 18.53296501 | G42: =IF(Design!$J$18="x",D42,0) -> 54.98512456 | H42: =IF(Design!$J$18="x",E42,0) -> 18.53296501 | K42: =K41 -> 62.10256228 | L42: =L41 -> 22.03035747 | N42: =N41 -> 3.13057527 | O42: 115.1651324 | P42: 984.3981496 | Q42: 492.1990748 | R42: -492.1990748 | S42: 64.36325154 | T42: 460.017449 | U42: -460.017449 | V42: =IF(C42>0,L42,"") -> 22.03035747
K43: =K42 -> 62.10256228 | L43: =L42 -> 22.03035747 | N43: =((I41-I38)^2+(J41-J38)^2)^0.5 -> 5.226321735 | O43: =O40+N43 -> 120.3914541 | P43: =(((D41-D42)^2+(E41-E42)^2)^0.5)*Design!$D$20 -> 891.3658309 | Q43: 445.6829155 | R43: -445.6829155 | S43: 43.24307748 | T43: 424.0613767 | U43: -424.0613767 | V43: =IF(C42>0,L43,"") -> 22.03035747
D44: =D41 -> 69.22 | E44: =E42 -> 18.53296501 | G44: =IF(Design!$J$18="x",D44,0) -> 69.22 | H44: =IF(Design!$J$18="x",E44,0) -> 18.53296501 | I44: =SUM(D44:D45)/2 -> 62.10256228 | J44: =SUM(E44:E45)/2 -> 18.53296501 | K44: =IF(Design!$J$17="x",I44,0) -> 62.10256228 | L44: =IF(Design!$J$17="x",J44,0) -> 18.53296501 | N44: =N43 -> 5.226321735 | O44: 120.3914541 | P44: 891.3658309 | Q44: 445.6829155 | R44: -445.6829155 | S44: 43.24307748 | T44: 424.0613767 | U44: -424.0613767 | V44: =IF(C45>0,L44,"") -> 18.53296501
B45: S3 | C45: =C42+1 -> 14 | D45: =D42 -> 54.98512456 | E45: =E42 -> 18.53296501 | G45: =IF(Design!$J$18="x",D45,0) -> 54.98512456 | H45: =IF(Design!$J$18="x",E45,0) -> 18.53296501 | K45: =K44 -> 62.10256228 | L45: =L44 -> 18.53296501 | N45: =N44 -> 5.226321735 | O45: 120.3914541 | P45: 891.3658309 | Q45: 445.6829155 | R45: -445.6829155 | S45: 43.24307748 | T45: 424.0613767 | U45: -424.0613767 | V45: =IF(C45>0,L45,"") -> 18.53296501
K46: =K45 -> 62.10256228 | L46: =L45 -> 18.53296501 | N46: =((I44-I41)^2+(J44-J41)^2)^0.5 -> 3.497392459 | O46: =O43+N46 -> 123.8888466 | P46: =(((D44-D45)^2+(E44-E45)^2)^0.5)*Design!$D$20-M46 -> 800 | Q46: 400 | R46: -400 | S46: 1.136868377e-13 | T46: 400 | U46: -400 | V46: =IF(C45>0,L46,"") -> 18.53296501
D47: =D44 -> 69.22 | E47: =Panels!E68 -> 16.63296501 | G47: =IF(Design!$J$18="x",D47,0) -> 69.22 | H47: =IF(Design!$J$18="x",E47,0) -> 16.63296501 | I47: =SUM(D47:D48)/2 -> 62.10256228 | J47: =SUM(E47:E48)/2 -> 16.63296501 | K47: =IF(Design!$J$17="x",I47,0) -> 62.10256228 | L47: =IF(Design!$J$17="x",J47,0) -> 16.63296501 | N47: =N46 -> 3.497392459 | O47: 123.8888466 | P47: 800 | Q47: 400 | R47: -400 | S47: 0 | T47: =$P$46/2 -> 400 | U47: =-T47 -> -400 | V47: =IF(C48>0,L47,"") -> 16.63296501
C48: =C45+1 -> 15 | D48: =D45 -> 54.98512456 | E48: =E47 -> 16.63296501 | G48: =IF(Design!$J$18="x",D48,0) -> 54.98512456 | H48: =IF(Design!$J$18="x",E48,0) -> 16.63296501 | K48: =K47 -> 62.10256228 | L48: =L47 -> 16.63296501 | N48: =N47 -> 3.497392459 | O48: 123.8888466 | P48: 800 | Q48: 400 | R48: -400 | S48: 0 | T48: =$P$46/2 -> 400 | U48: -400 | V48: =IF(C48>0,L48,"") -> 16.63296501
K49: =K48 -> 62.10256228 | L49: =L48 -> 16.63296501 | N49: =((I47-I44)^2+(J47-J44)^2)^0.5 -> 1.9 | O49: =O46+N49 -> 125.7888466 | P49: =(((D47-D48)^2+(E47-E48)^2)^0.5)*Design!$D$20-M49 -> 800 | Q49: 400 | R49: -400 | S49: 0 | T49: 400 | U49: -400 | V49: =IF(C48>0,L49,"") -> 16.63296501
D50: =D41 -> 69.22 | E50: =(E48+E53)/2 -> 9.266482505 | G50: =IF(Design!$J$18="x",D50,0) -> 69.22 | H50: =IF(Design!$J$18="x",E50,0) -> 9.266482505 | I50: =SUM(D50:D51)/2 -> 62.10256228 | J50: =SUM(E50:E51)/2 -> 12.94972376 | K50: =IF(Design!$J$17="x",I50,0) -> 62.10256228 | L50: =IF(Design!$J$17="x",J50,0) -> 12.94972376 | N50: =N49 -> 1.9 | O50: 125.7888466 | P50: 800 | Q50: 400 | R50: -400 | S50: 0 | T50: 400 | U50: -400 | V50: =IF(C51>0,L50,"") -> 12.94972376
C51: =C48+1 -> 16 | D51: =D42 -> 54.98512456 | E51: =E48 -> 16.63296501 | G51: =IF(Design!$J$18="x",D51,0) -> 54.98512456 | H51: =IF(Design!$J$18="x",E51,0) -> 16.63296501 | K51: =K50 -> 62.10256228 | L51: =L50 -> 12.94972376 | N51: =N50 -> 1.9 | O51: 125.7888466 | P51: 800 | Q51: 400 | R51: -400 | S51: 0 | T51: 400 | U51: -400 | V51: =IF(C51>0,L51,"") -> 12.94972376
K52: =K51 -> 62.10256228 | L52: =L51 -> 12.94972376 | M52: =Panels!L125*Panels!L126 -> 27.99263352 | N52: =((I50-I47)^2+(J50-J47)^2)^0.5 -> 3.683241252 | O52: =O49+N52 -> 129.4720878 | P52: =(((D50-D51)^2+(E50-E51)^2)^0.5)*Design!$D$20-M52 -> 872.7808953 | Q52: 436.3904477 | R52: -436.3904477 | S52: 72.78089534 | T52: 400 | U52: -400 | V52: =IF(C51>0,L52,"") -> 12.94972376
D53: =(D54+Panels!D57)/2 -> 62.10256228 | E53: =Panels!E57 -> 1.9 | G53: =IF(Design!$J$18="x",D53,0) -> 62.10256228 | H53: =IF(Design!$J$18="x",E53,0) -> 1.9 | I53: =SUM(D53:D54)/2 -> 58.54384342 | J53: =SUM(E53:E54)/2 -> 9.266482505 | K53: =IF(Design!$J$17="x",I53,0) -> 58.54384342 | L53: =IF(Design!$J$17="x",J53,0) -> 9.266482505 | N53: =N52 -> 3.683241252 | O53: 129.4720878 | P53: 872.7808953 | Q53: 436.3904477 | R53: -436.3904477 | S53: 72.78089534 | T53: 400 | U53: -400 | V53: =IF(C54>0,L53,"") -> 9.266482505
C54: =C51+1 -> 17 | D54: =D51 -> 54.98512456 | E54: =E51 -> 16.63296501 | G54: =IF(Design!$J$18="x",D54,0) -> 54.98512456 | H54: =IF(Design!$J$18="x",E54,0) -> 16.63296501 | K54: =K53 -> 58.54384342 | L54: =L53 -> 9.266482505 | N54: =N53 -> 3.683241252 | O54: 129.4720878 | P54: 872.7808953 | Q54: 436.3904477 | R54: -436.3904477 | S54: 72.78089534 | T54: 400 | U54: -400 | V54: =IF(C54>0,L54,"") -> 9.266482505
K55: =K54 -> 58.54384342 | L55: =L54 -> 9.266482505 | M55: =M52 -> 27.99263352 | N55: =((I53-I50)^2+(J53-J50)^2)^0.5 -> 5.121596046 | O55: =O52+N55 -> 134.5936839 | P55: =(((D53-D54)^2+(E53-E54)^2)^0.5)*Design!$D$20-M55 -> 891.5571483 | Q55: 445.7785741 | R55: -445.7785741 | S55: 91.55714826 | T55: 400 | U55: -400 | V55: =IF(C54>0,L55,"") -> 9.266482505
D56: =D57 -> 54.98512456 | E56: =Panels!E60 -> 1.9 | G56: =IF(Design!$J$18="x",D56,0) -> 54.98512456 | H56: =IF(Design!$J$18="x",E56,0) -> 1.9 | I56: =SUM(D56:D57)/2 -> 54.98512456 | J56: =SUM(E56:E57)/2 -> 9.266482505 | K56: =IF(Design!$J$17="x",I56,0) -> 54.98512456 | L56: =IF(Design!$J$17="x",J56,0) -> 9.266482505 | N56: =N55 -> 5.121596046 | O56: 134.5936839 | P56: 891.5571483 | Q56: 445.7785741 | R56: -445.7785741 | S56: 91.55714826 | T56: 400 | U56: -400 | V56: =IF(C57>0,L56,"") -> 9.266482505
C57: =C54+1 -> 18 | D57: =D54 -> 54.98512456 | E57: =E54 -> 16.63296501 | G57: =IF(Design!$J$18="x",D57,0) -> 54.98512456 | H57: =IF(Design!$J$18="x",E57,0) -> 16.63296501 | K57: =K56 -> 54.98512456 | L57: =L56 -> 9.266482505 | N57: =N56 -> 5.121596046 | O57: 134.5936839 | P57: 891.5571483 | Q57: 445.7785741 | R57: -445.7785741 | S57: 91.55714826 | T57: 400 | U57: -400 | V57: =IF(C57>0,L57,"") -> 9.266482505
K58: =K57 -> 54.98512456 | L58: =L57 -> 9.266482505 | M58: =M55 -> 27.99263352 | N58: =((I56-I53)^2+(J56-J53)^2)^0.5 -> 3.558718861 | O58: =O55+N58 -> 138.1524027 | P58: =(((D56-D57)^2+(E56-E57)^2)^0.5)*Design!$D$20-M58 -> 800 | Q58: 400 | R58: -400 | S58: -2.273736754e-13 | T58: 400 | U58: -400 | V58: =IF(C57>0,L58,"") -> 9.266482505
D59: =D60 -> 0 | E59: =E57 -> 16.63296501 | G59: =IF(Design!$J$18="x",D59,0) -> 0 | H59: =IF(Design!$J$18="x",E59,0) -> 16.63296501 | I59: =SUM(D59:D60)/2 -> 0 | J59: =SUM(E59:E60)/2 -> 9.266482505 | K59: =IF(Design!$J$17="x",I59,0) -> 0 | L59: =IF(Design!$J$17="x",J59,0) -> 9.266482505 | N59: =N58 -> 3.558718861 | O59: 138.1524027 | P59: 800 | Q59: 400 | R59: -400 | S59: -2.273736754e-13 | T59: 400 | U59: -400 | V59: =IF(C60>0,L59,"") -> 9.266482505 | AA59: l | AB59: =((E33-E36)-(D36-D33)*Panels!Q30)/Panels!P30 -> 20.55195915 | AC59: (
B60: S4 | C60: =C57+1 -> 19 | D60: =Panels!D54 -> 0 | E60: =Panels!E54 -> 1.9 | G60: =IF(Design!$J$18="x",D60,0) -> 0 | H60: =IF(Design!$J$18="x",E60,0) -> 1.9 | K60: =K59 -> 0 | L60: =L59 -> 9.266482505 | N60: =N59 -> 3.558718861 | O60: 138.1524027 | P60: 800 | Q60: 400 | R60: -400 | S60: -2.273736754e-13 | T60: 400 | U60: -400 | V60: =IF(C60>0,L60,"") -> 9.266482505
K61: =K60 -> 0 | L61: =L60 -> 9.266482505 | M61: =M58 -> 27.99263352 | N61: =((I59-I56)^2+(J59-J56)^2)^0.5 -> 54.98512456 | O61: =O58+N61 -> 193.1375273 | P61: =(((D59-D60)^2+(E59-E60)^2)^0.5)*Design!$D$20-M61 -> 800 | Q61: 400 | R61: -400 | S61: -2.273736754e-13 | T61: 400 | U61: -400 | V61: =IF(C60>0,L61,"") -> 9.266482505
B65: S2 (Calc) | O65: =O25-Driver_Offset -> 58.43516667 | P65: =(($P$46-$P$7)*O65/$O$46+$P$7) -> 1700.617298
D68: a1 | E68: =P10 -> 2467.127315 | F68: =O10 -> 2.727897155
D69: a2 | E69: =Design!D25 -> 800 | F69: =O46 -> 123.8888466
D70: a3 | E70: =P46 -> 800 | F70: =O46 -> 123.8888466

Sheet Guides
A1: Guides | C1: x | D1: y | F1: x | G1: y | J1: x1 | K1: y1 | L1: x2 | M1: y2 | N1: a | O1: b | P1: x | Q1: y | R1: l
C3: =Panels!D68 -> 0 | D3: =Panels!E68 -> 16.63296501 | F3: =IF(Design!$J$19="x",C3,0) -> 0 | G3: =IF(Design!$J$19="x",D3,0) -> 16.63296501
B4: 1 | C4: =Panels!D56 -> 71.12 | D4: =D3 -> 16.63296501 | F4: =IF(Design!$J$19="x",C4,0) -> 71.12 | G4: =IF(Design!$J$19="x",D4,0) -> 16.63296501
C6: =Panels!D40 -> 3.8 | D6: =Panels!E47 -> 81.28 | F6: =IF(Design!$J$19="x",C6,0) -> 3.8 | G6: =IF(Design!$J$19="x",D6,0) -> 81.28
B7: 2 | C7: =C6 -> 3.8 | D7: =Panels!E52 -> 0 | F7: =IF(Design!$J$19="x",C7,0) -> 3.8 | G7: =IF(Design!$J$19="x",D7,0) -> 0
C9: =P10 -> 71.12 | D9: =Q10 -> 32.05026922 | F9: =IF(Design!$J$19="x",C9,0) -> 71.12 | G9: =IF(Design!$J$19="x",D9,0) -> 32.05026922 | I9: =Panels!B62 -> Panel E | J9: =Panels!D64 -> 32.38088848 | K9: =Panels!E64 -> 41.67929599 | L9: =Panels!D65 -> 68.76168027 | M9: =Panels!E65 -> 32.63645519 | N9: =(M9-K9)/(L9-J9) -> -0.2485608573 | O9: =(M9*J9-K9*L9)/(J9-L9) -> 49.72791739
B10: 3 | C10: =P11 -> 0 | D10: =Q11 -> 49.72791739 | F10: =IF(Design!$J$19="x",C10,0) -> 0 | G10: =IF(Design!$J$19="x",D10,0) -> 49.72791739 | I10: =Panels!B74 -> Panel G | J10: =Panels!D75 -> 71.12 | K10: =Panels!E75 -> 0 | L10: =Panels!D76 -> 71.12 | M10: =Panels!E76 -> 81.28 | N10: =IF(J10<>L10,(M10-K10)/(L10-J10),"") ->  | O10: =IF(J10<>L10,(M10*J10-K10*L10)/(J10-L10),"") ->  | P10: =IF(N10<>"",(O9-O10)/(N10-N9),J10) -> 71.12 | Q10: =P10*N9+O9 -> 32.05026922 | R10: =(P10^2+Q10^2)^0.5 -> 78.00816724
I11: =Panels!B74 -> Panel G | J11: =Panels!D74 -> 0 | K11: =Panels!E74 -> 0 | L11: =Panels!D77 -> 0 | M11: =Panels!E77 -> 81.28 | N11: =IF(J11<>L11,(M11-K11)/(L11-J11),"") ->  | O11: =IF(J11<>L11,(M11*J11-K11*L11)/(J11-L11),"") ->  | P11: =IF(N11<>"",(O9-O11)/(N11-N9),J11) -> 0 | Q11: =P11*N9+O9 -> 49.72791739 | R11: =(P11^2+Q11^2)^0.5 -> 49.72791739
F12: =IF(Design!$J$19="x",C12,0) -> 0 | G12: =IF(Design!$J$19="x",D12,0) -> 0
B13: 4 | F13: =IF(Design!$J$19="x",C13,0) -> 0 | G13: =IF(Design!$J$19="x",D13,0) -> 0
F15: =IF(Design!$J$19="x",C15,0) -> 0 | G15: =IF(Design!$J$19="x",D15,0) -> 0
B16: 5 | F16: =IF(Design!$J$19="x",C16,0) -> 0 | G16: =IF(Design!$J$19="x",D16,0) -> 0
F18: =IF(Design!$J$19="x",C18,0) -> 0 | G18: =IF(Design!$J$19="x",D18,0) -> 0
B19: 6 | F19: =IF(Design!$J$19="x",C19,0) -> 0 | G19: =IF(Design!$J$19="x",D19,0) -> 0
C24: 0 | D24: =0 -> 0 | F24: =IF(Design!$J$19="x",C24,0) -> 0 | G24: =IF(Design!$J$19="x",D24,0) -> 0
B25: X | C25: 0 | D25: =MAX(C3:D20) -> 81.28 | F25: =IF(Design!$J$19="x",C25,0) -> 0 | G25: =IF(Design!$J$19="x",D25,0) -> 81.28
C27: 0 | D27: =0 -> 0 | F27: =IF(Design!$J$19="x",C27,0) -> 0 | G27: =IF(Design!$J$19="x",D27,0) -> 0
B28: Y | C28: =D25 -> 81.28 | D28: =D27 -> 0 | F28: =IF(Design!$J$19="x",C28,0) -> 81.28 | G28: =IF(Design!$J$19="x",D28,0) -> 0
